bitfinex-derivatives/quotes_BTCF0:USTF0_20250222
["timestamp","ask_amount","ask_price","bid_price","bid_amount"]
[1740230404895,0.002,96911.0,96910.0,0.5672142]
[1740230405083,0.002,96911.0,96910.0,0.5772142]
[1740230408500,0.208412,96911.0,96910.0,0.5672142]
[1740230409500,0.208412,96911.0,96910.0,0.5772142]
[1740230411995,0.208412,96911.0,96910.0,0.6779342]
[1740230413591,0.208412,96911.0,96910.0,0.5772142]
[1740230413796,0.208412,96911.0,96910.0,0.6779342]
[1740230414500,0.208412,96911.0,96910.0,0.6679342]
[1740230414696,0.208412,96911.0,96910.0,0.6779342]
[1740230415402,0.208412,96911.0,96910.0,0.6679342]
[1740230416494,0.218412,96911.0,96910.0,0.6679342]
[1740230423604,0.218412,96911.0,96910.0,0.3071342]
[1740230434209,0.218412,96911.0,96910.0,0.2064142]
[1740230446219,0.208412,96911.0,96910.0,0.2064142]
[1740230449321,0.2064142,96910.0,96909.0,0.10072]
[1740230449622,0.2164142,96910.0,96909.0,0.10072]
[1740230449818,0.2164142,96910.0,96909.0,0.3071363]
[1740230451510,0.2174142,96910.0,96909.0,0.3071363]
[1740230454823,0.2174142,96910.0,96909.0,0.2064163]
[1740230455025,0.2580225,96909.0,96908.0,0.2064178]
[1740230455214,0.0616041,96909.0,96907.0,0.3608]
[1740230455414,0.10279208,96910.0,96904.0,0.0653]
[1740230455415,0.2064248,96905.0,96904.0,0.0653]
[1740230455611,0.2064248,96905.0,96904.0,0.2717269]
[1740230455612,0.2164248,96905.0,96904.0,0.2717269]
[1740230455811,1.7164248,96905.0,96904.0,0.2717269]
[1740230457413,1.7164248,96905.0,96904.0,0.0653]
[1740230458027,1.7164248,96905.0,96902.0,0.01044602]
[1740230458028,0.2064291,96903.0,96902.0,0.01044602]
[1740230458330,0.2064376,96899.0,96898.0,0.2726394]
[1740230458527,0.2144376,96899.0,96898.0,0.0662]
[1740230458722,0.2809376,96899.0,96898.0,0.2726397]
[1740230459428,0.2789376,96899.0,96898.0,0.28332411]
[1740230459728,0.2789376,96899.0,96898.0,0.28532411]
[1740230461026,0.2124376,96899.0,96898.0,0.28532411]
[1740230461631,0.2124376,96899.0,96898.0,0.28832411]
[1740230479227,0.0664,96913.0,96898.0,0.08188441]
[1740230479434,0.01,96899.0,96898.0,0.33993381]
[1740230479638,0.01,96899.0,96898.0,0.13349411]
[1740230479838,0.01,96899.0,96898.0,0.33993381]
[1740230480437,0.2164376,96899.0,96898.0,0.33993381]
[1740230480735,0.0516043,96909.0,96898.0,0.33993381]
[1740230480736,0.15480349,96905.0,96904.0,0.2064269]
[1740230480937,0.15480349,96905.0,96904.0,0.6679469]
[1740230481142,0.15480349,96905.0,96904.0,0.6779469]
[1740230483036,0.15480349,96905.0,96904.0,0.6789469]
[1740230484233,0.15495831,96914.0,96904.0,0.47252]
[1740230484437,0.36136391,96914.0,96913.0,0.2064078]
[1740230484937,0.36136391,96914.0,96913.0,0.3360078]
[1740230486242,0.36236391,96914.0,96913.0,0.3360078]
[1740230486749,0.36536391,96914.0,96913.0,0.3360078]
[1740230488037,0.21056042,96914.0,96913.0,0.3360078]
[1740230488638,0.00415482,96914.0,96913.0,0.3360078]
[1740230492554,0.00415482,96914.0,96913.0,0.4366878]
[1740230492748,0.00415482,96914.0,96913.0,0.4466878]
[1740230492953,0.15064867,96922.0,96921.0,0.2063907]
[1740230493148,0.15064867,96922.0,96921.0,0.2163907]
[1740230493447,0.15064867,96922.0,96921.0,0.2781907]
[1740230493840,0.35703727,96922.0,96921.0,0.2781907]
[1740230494148,0.15464867,96922.0,96921.0,0.2781907]
[1740230494652,0.36103727,96922.0,96921.0,0.2781907]
[1740230495056,0.36103727,96922.0,96921.0,0.3788707]
[1740230495246,0.36203727,96922.0,96921.0,0.3788707]
[1740230495851,0.2113886,96922.0,96921.0,0.3788707]
[1740230500560,0.005,96922.0,96921.0,0.3788707]
[1740230500754,0.2113886,96922.0,96921.0,0.3788707]
[1740230501457,0.005,96922.0,96921.0,0.3788707]
[1740230501656,0.005,96922.0,96921.0,0.2781907]
[1740230501855,0.2113886,96922.0,96921.0,0.3788707]
[1740230514558,0.2113886,96922.0,96921.0,0.3688707]
[1740230515556,0.2113886,96922.0,96919.0,0.04127]
[1740230515756,0.2163929,96920.0,96919.0,0.04127]
[1740230516153,0.01,96920.0,96916.0,0.3608]
[1740230516358,0.2163992,96917.0,96916.0,0.3608]
[1740230516867,0.2064056,96914.0,96913.0,0.3228046]
[1740230517078,0.2164056,96914.0,96913.0,0.3228046]
[1740230518061,0.2164056,96914.0,96913.0,0.2712028]
[1740230519465,0.2174056,96914.0,96913.0,0.2712028]
[1740230519765,0.2184056,96914.0,96913.0,0.2712028]
[1740230523672,0.2084056,96914.0,96913.0,0.2712028]
[1740230530466,0.002,96914.0,96913.0,0.2812028]
[1740230531971,0.2084056,96914.0,96913.0,0.2812028]
[1740230532174,0.2084056,96914.0,96913.0,0.2712028]
[1740230532370,0.2084056,96914.0,96913.0,0.2812028]
[1740230532566,0.2084056,96914.0,96913.0,0.0648]
[1740230532767,0.3330056,96914.0,96913.0,0.0648]
[1740230532970,0.3330056,96914.0,96913.0,0.2712078]
[1740230533681,0.3330056,96914.0,96913.0,0.0648]
[1740230534075,0.3330056,96914.0,96913.0,0.2712078]
[1740230538580,0.2705056,96914.0,96913.0,0.2712078]
[1740230544183,0.2084056,96914.0,96913.0,0.2712078]
[1740230544775,0.002,96914.0,96913.0,0.2712078]
[1740230545469,0.002,96914.0,96913.0,0.3718478]
[1740230545673,0.002,96914.0,96913.0,0.3818478]
[1740230547577,0.002,96914.0,96913.0,0.7426478]
[1740230548577,0.002,96914.0,96913.0,0.6420078]
[1740230548780,0.002,96914.0,96913.0,0.7426478]
[1740230551588,0.002,96914.0,96913.0,0.7326478]
[1740230551984,0.002,96914.0,96913.0,0.7426478]
[1740230553290,0.002,96914.0,96913.0,0.7326478]
[1740230553488,0.002,96914.0,96913.0,0.7426478]
[1740230553693,0.002,96914.0,96913.0,0.6420078]
[1740230553993,0.002,96914.0,96913.0,0.7426478]
[1740230554396,0.2084056,96914.0,96913.0,0.7426478]
[1740230555196,0.2084056,96914.0,96913.0,0.7326478]
[1740230555499,0.2084056,96914.0,96913.0,0.2812078]
[1740230555698,0.2084056,96914.0,96913.0,0.3818478]
[1740230561398,0.002,96914.0,96913.0,0.3818478]
[1740230567003,0.002,96914.0,96913.0,0.6285897]
[1740230570304,0.002,96914.0,96913.0,0.5279497]
[1740230570504,0.002,96914.0,96913.0,0.6285497]
[1740230571300,0.002,96914.0,96913.0,0.3818078]
[1740230573506,0.00015482,96931.0,96913.0,0.3818078]
[1740230573507,0.00015482,96931.0,96930.0,0.2063716]
[1740230573808,0.00015482,96931.0,96930.0,0.6777716]
[1740230574009,0.00015482,96931.0,96930.0,0.8058716]
[1740230574703,0.00115482,96931.0,96930.0,0.8068716]
[1740230575202,0.00115482,96931.0,96930.0,0.81744863]
[1740230575409,0.00115482,96931.0,96930.0,0.81844863]
[1740230576600,0.00115482,96931.0,96930.0,0.87954863]
[1740230577111,0.00115482,96931.0,96930.0,0.77894863]
[1740230577307,0.00115482,96931.0,96930.0,0.87954863]
[1740230579613,0.00115482,96931.0,96930.0,0.51874863]
[1740230579914,0.00115482,96931.0,96930.0,0.87954863]
[1740230583003,0.36218602,96944.0,96942.0,0.206346]
[1740230583204,0.15584382,96944.0,96942.0,0.306946]
[1740230583409,0.15584382,96944.0,96942.0,0.492046]
[1740230584012,0.15584382,96944.0,96942.0,0.852846]
[1740230584206,0.00120923,96944.0,96942.0,0.852846]
[1740230584402,0.00120923,96944.0,96942.0,0.863846]
[1740230584812,0.08522108,96945.0,96942.0,0.6575]
[1740230585107,0.16865713,96957.0,96956.0,0.2063162]
[1740230585313,0.16865713,96957.0,96956.0,0.3169162]
[1740230585613,0.16865713,96957.0,96956.0,0.3794162]
[1740230588111,0.16865713,96957.0,96956.0,0.4453162]
[1740230589814,0.00010255,96966.0,96956.0,0.239]
[1740230590009,0.00010255,96966.0,96965.0,0.2162971]
[1740230590210,0.00010255,96966.0,96965.0,0.3168571]
[1740230591807,1.50010255,96966.0,96965.0,0.32735087]
[1740230595019,1.50010255,96966.0,96965.0,0.31735087]
[1740230595217,1.50010255,96966.0,96965.0,0.32735087]
[1740230595608,1.50010255,96966.0,96965.0,0.31735087]
[1740230597207,1.70639745,96966.0,96965.0,0.31735087]
[1740230597407,1.70639745,96966.0,96965.0,0.11105377]
[1740230597709,1.50010255,96966.0,96956.0,0.26050065]
[1740230598019,0.3608,96957.0,96956.0,0.0625]
[1740230598211,0.5671141,96957.0,96956.0,0.10056]
[1740230598410,0.6960141,96957.0,96956.0,0.3068762]
[1740230598915,0.6960141,96957.0,96956.0,0.2063162]
[1740230600013,0.2063205,96954.0,96953.0,0.3068793]
[1740230600712,0.2063205,96954.0,96953.0,0.2063193]
[1740230601107,0.4123796,96955.0,96947.0,0.00015473]
[1740230601108,0.3608,96955.0,96947.0,0.00015473]
[1740230601312,0.2063332,96948.0,96947.0,0.00015473]
[1740230602117,0.2063545,96938.0,96937.0,0.01053101]
[1740230602318,0.2063545,96938.0,96937.0,0.2063567]
[1740230602518,1.9014545,96938.0,96937.0,0.2063567]
[1740230602712,1.9014545,96938.0,96936.0,0.00154724]
[1740230602914,0.2063567,96937.0,96936.0,0.00054716]
[1740230603522,0.1951,96938.0,96930.0,0.00108134]
[1740230603727,0.5671694,96931.0,96930.0,0.00108134]
[1740230605327,0.5671694,96931.0,96927.0,0.00015473]
[1740230605328,0.1651158,96928.0,96927.0,0.00015473]
[1740230605525,0.10056,96928.0,96915.0,0.2064029]
[1740230605826,0.2064014,96916.0,96915.0,0.2064029]
[1740230606028,1.7064014,96916.0,96915.0,0.2064029]
[1740230606427,0.2164014,96916.0,96915.0,0.2064029]
[1740230610436,0.2064014,96916.0,96915.0,0.2064029]
[1740230615728,0.2064078,96913.0,96912.0,0.2164073]
[1740230616926,0.2064078,96913.0,96912.0,0.2174073]
[1740230617521,0.2064078,96913.0,96912.0,0.011]
[1740230617726,0.2064078,96913.0,96912.0,0.2074099]
[1740230617937,0.2064078,96913.0,96912.0,0.011]
[1740230618129,0.2064078,96913.0,96912.0,0.001]
[1740230618430,0.2064099,96912.0,96911.0,0.02040081]
[1740230618620,0.051602,96913.0,96907.0,0.477045]
[1740230618823,0.2064184,96908.0,96907.0,0.43505312]
[1740230619136,0.2064184,96908.0,96907.0,0.6308205]
[1740230619832,0.2054184,96908.0,96907.0,0.0636]
[1740230620224,0.2054184,96908.0,96907.0,0.2700205]
[1740230621023,0.2054184,96908.0,96907.0,0.2710205]
[1740230621929,0.2054184,96908.0,96907.0,0.2730205]
[1740230622141,1.7054184,96908.0,96907.0,0.2730205]
[1740230622531,0.2054184,96908.0,96907.0,0.2730205]
[1740230624028,0.2054184,96908.0,96907.0,0.0666]
[1740230624933,0.2154184,96908.0,96907.0,0.0666]
[1740230627126,0.2761184,96908.0,96907.0,0.0666]
[1740230627731,0.2761184,96908.0,96907.0,0.2730205]
[1740230639744,1.7761184,96908.0,96907.0,0.2730205]
[1740230646353,1.7661184,96908.0,96907.0,0.2730205]
[1740230647653,1.7661184,96908.0,96907.0,0.45804972]
[1740230651556,1.7054184,96908.0,96907.0,0.2730205]
[1740230652760,0.2054184,96908.0,96907.0,0.2730205]
[1740230656071,1.50052001,96911.0,96910.0,0.2064142]
[1740230656366,1.5,96911.0,96910.0,0.2064142]
[1740230656562,1.5,96911.0,96910.0,0.2677142]
[1740230656865,1.5,96911.0,96910.0,0.2777142]
[1740230657055,0.00015473,96925.0,96917.0,0.2063992]
[1740230657252,0.00015473,96925.0,96917.0,0.2163992]
[1740230657457,0.051598,96921.0,96917.0,0.2789992]
[1740230657662,0.2063957,96919.0,96917.0,0.2789992]
[1740230657969,0.051598,96921.0,96917.0,0.2789992]
[1740230658170,0.36069108,96918.0,96917.0,0.0626]
[1740230658468,0.36069108,96918.0,96917.0,0.2689992]
[1740230658667,0.36069108,96918.0,96917.0,0.2699992]
[1740230659968,0.37069108,96918.0,96917.0,0.2699992]
[1740230660559,0.37069108,96918.0,96917.0,0.3303992]
[1740230660770,0.2163971,96918.0,96917.0,0.3303992]
[1740230661761,0.2163971,96918.0,96917.0,0.3293992]
[1740230661967,0.2163971,96918.0,96917.0,0.3303992]
[1740230662957,0.2064014,96916.0,96915.0,0.18533356]
[1740230663268,0.2164014,96916.0,96915.0,0.18533356]
[1740230663461,1.7164014,96916.0,96915.0,0.08623356]
[1740230663865,1.7164014,96916.0,96915.0,6e-08]
[1740230664263,1.51,96916.0,96909.0,0.2467419]
[1740230664568,0.5772142,96910.0,96909.0,0.2467419]
[1740230664772,0.6777742,96910.0,96909.0,0.2467419]
[1740230665066,0.6777742,96910.0,96909.0,0.0981686]
[1740230665871,0.6777742,96910.0,96909.0,0.0991686]
[1740230666464,0.7393742,96910.0,96909.0,0.0991686]
[1740230667267,0.2064184,96908.0,96907.0,0.04127]
[1740230667466,0.2064184,96908.0,96906.0,0.00015473]
[1740230667467,0.2064205,96907.0,96906.0,0.00015473]
[1740230667671,0.2164205,96907.0,96906.0,3e-08]
[1740230668258,1.7164205,96907.0,96906.0,3e-08]
[1740230668464,1.7144205,96907.0,96906.0,3e-08]
[1740230668963,0.206461,96888.0,96887.0,0.13625286]
[1740230669161,0.3708,96888.0,96881.0,0.0635]
[1740230669364,0.3708,96888.0,96878.0,0.0622]
[1740230669365,0.2064802,96879.0,96878.0,0.0622]
[1740230669565,0.2164802,96879.0,96878.0,0.2686823]
[1740230669766,0.2154802,96879.0,96878.0,0.2686823]
[1740230669968,0.2154802,96879.0,96878.0,0.0622]
[1740230670170,0.2084802,96879.0,96878.0,0.2686823]
[1740230670368,0.2064802,96879.0,96878.0,0.2686823]
[1740230670770,0.2064802,96879.0,96878.0,0.2756823]
[1740230671070,0.2064802,96879.0,96878.0,0.2826823]
[1740230672670,0.2064802,96879.0,96878.0,0.0762]
[1740230673177,0.2064802,96879.0,96878.0,0.2826823]
[1740230675381,0.2064802,96879.0,96878.0,0.0762]
[1740230675775,0.2064802,96879.0,96878.0,0.014]
[1740230676575,0.2064802,96879.0,96878.0,0.2204823]
[1740230680785,0.2580991,96881.0,96880.0,0.2064781]
[1740230681778,0.2680991,96881.0,96880.0,0.2064781]
[1740230682080,0.2680991,96881.0,96880.0,0.2134781]
[1740230682684,0.2690991,96881.0,96880.0,0.2204781]
[1740230697495,0.2690991,96881.0,96880.0,0.014]
[1740230698187,1.7690991,96881.0,96880.0,0.014]
[1740230698889,1.8696591,96881.0,96880.0,0.014]
[1740230699785,1.8686591,96881.0,96880.0,0.012]
[1740230704288,2.2294591,96881.0,96880.0,0.012]
[1740230710898,2.27967303,96881.0,96880.0,0.012]
[1740230714106,2.17911303,96881.0,96880.0,0.012]
[1740230714308,2.27967303,96881.0,96880.0,0.012]
[1740230725918,1.91887303,96881.0,96880.0,0.012]
[1740230726115,2.64047303,96881.0,96880.0,0.012]
[1740230728520,2.82547772,96881.0,96880.0,0.012]
[1740230732220,2.74259915,96881.0,96880.0,0.012]
[1740230732617,2.64203915,96881.0,96880.0,0.012]
[1740230732818,2.74259915,96881.0,96880.0,0.012]
[1740230733819,0.2044781,96880.0,96879.0,0.0576]
[1740230734023,0.2104781,96880.0,96879.0,0.0576]
[1740230736519,0.36281815,96880.0,96879.0,0.0576]
[1740230736719,0.36381815,96880.0,96879.0,0.0576]
[1740230741324,0.26169203,96880.0,96879.0,0.0576]
[1740230741830,1.07973203,96880.0,96879.0,0.0576]
[1740230743733,2.57973203,96880.0,96879.0,0.0576]
[1740230744722,0.2064823,96878.0,96877.0,0.04128]
[1740230744922,0.2164823,96878.0,96877.0,0.04128]
[1740230745623,1.7164823,96878.0,96877.0,0.04128]
[1740230746829,1.51,96878.0,96872.0,0.0542]
[1740230747041,0.577293,96873.0,96872.0,0.0542]
[1740230747520,0.58788106,96873.0,96872.0,0.0542]
[1740230747921,0.68840106,96873.0,96872.0,0.1069]
[1740230748632,0.68840106,96873.0,96872.0,0.1079]
[1740230750332,0.677813,96873.0,96872.0,0.1079]
[1740230751028,0.83143627,96873.0,96872.0,0.1079]
[1740230756732,0.83143627,96873.0,96872.0,0.11849221]
[1740230757131,0.83143627,96873.0,96872.0,0.1079]
[1740230758337,0.72802693,96873.0,96872.0,0.1079]
[1740230760438,0.71802693,96873.0,96872.0,0.1079]
[1740230760838,0.62750693,96873.0,96872.0,0.1079]
[1740230761032,0.71802693,96873.0,96872.0,0.1079]
[1740230761536,0.72802693,96873.0,96872.0,0.1079]
[1740230762639,0.71802693,96873.0,96872.0,0.3143951]
[1740230763636,0.61750693,96873.0,96872.0,0.3143951]
[1740230764137,0.62750693,96873.0,96872.0,0.3143951]
[1740230765431,0.62750693,96873.0,96872.0,0.1079]
[1740230765644,0.62750693,96873.0,96872.0,0.3143951]
[1740230773447,0.577293,96873.0,96872.0,0.3143951]
[1740230775653,0.216493,96873.0,96872.0,0.3143951]
[1740230775844,0.216493,96873.0,96872.0,0.1079]
[1740230776141,0.216493,96873.0,96872.0,0.003]
[1740230776536,1.716493,96873.0,96872.0,0.003]
[1740230776938,1.90226143,96873.0,96872.0,0.003]
[1740230777750,1.91247235,96873.0,96872.0,0.003]
[1740230779544,2.01299235,96873.0,96872.0,0.003]
[1740230780354,1.98394578,96873.0,96872.0,0.003]
[1740230783245,1.97373486,96873.0,96872.0,0.003]
[1740230786044,2.33453486,96873.0,96872.0,0.003]
[1740230787851,2.22802873,96873.0,96872.0,0.003]
[1740230788753,2.12750873,96873.0,96872.0,0.003]
[1740230788952,2.22798873,96873.0,96872.0,0.003]
[1740230794146,2.12750873,96873.0,96872.0,0.003]
[1740230794455,2.22798873,96873.0,96872.0,0.003]
[1740230794654,2.12750873,96873.0,96872.0,0.003]
[1740230794857,2.22798873,96873.0,96872.0,0.003]
[1740230801061,2.22798873,96873.0,96872.0,0.0552]
[1740230801359,2.33648309,96873.0,96872.0,0.0552]
[1740230810562,2.23600309,96873.0,96872.0,0.0552]
[1740230810765,2.33648309,96873.0,96872.0,0.0552]
[1740230811466,2.55231158,96873.0,96872.0,0.0552]
[1740230811661,2.54231158,96873.0,96872.0,0.0552]
[1740230811856,2.44183158,96873.0,96872.0,0.0552]
[1740230812171,2.54231158,96873.0,96872.0,0.0552]
[1740230812952,2.55231158,96873.0,96872.0,0.0552]
[1740230813359,2.45183158,96873.0,96872.0,0.0552]
[1740230813562,2.55231158,96873.0,96872.0,0.0552]
[1740230818662,2.33648309,96873.0,96872.0,0.0552]
[1740230819262,2.32648309,96873.0,96872.0,0.0552]
[1740230819861,2.33648309,96873.0,96872.0,0.0552]
[1740230821669,2.33644309,96873.0,96872.0,0.0552]
[1740230821959,2.32644309,96873.0,96872.0,0.0552]
[1740230822165,2.33644309,96873.0,96872.0,0.0552]
[1740230822757,2.32644309,96873.0,96872.0,0.0552]
[1740230822956,2.33644309,96873.0,96872.0,0.0552]
[1740230831672,2.46215176,96873.0,96872.0,0.0552]
[1740230834858,2.10135176,96873.0,96872.0,0.0552]
[1740230835064,2.46215176,96873.0,96872.0,0.0552]
[1740230840982,2.33644309,96873.0,96872.0,0.0552]
[1740230841869,2.32644309,96873.0,96872.0,0.0552]
[1740230844082,2.33644309,96873.0,96872.0,0.0552]
[1740230844986,2.41385474,96873.0,96872.0,0.0552]
[1740230849681,2.22794873,96873.0,96872.0,0.0552]
[1740230856684,1.76670873,96873.0,96872.0,0.0552]
[1740230856884,1.75670873,96873.0,96872.0,0.2616951]
[1740230857388,1.75670873,96873.0,96872.0,0.0552]
[1740230857779,1.76670873,96873.0,96872.0,0.0552]
[1740230859688,1.75670873,96873.0,96872.0,0.0552]
[1740230860080,1.75670873,96873.0,96872.0,0.2616951]
[1740230860276,1.76670873,96873.0,96872.0,0.0552]
[1740230860882,1.76670873,96873.0,96872.0,0.2616951]
[1740230861884,1.87616127,96873.0,96872.0,0.2616951]
[1740230862191,1.87616127,96873.0,96872.0,0.0552]
[1740230863194,1.87616127,96873.0,96872.0,0.2616951]
[1740230863390,1.87616127,96873.0,96872.0,0.0552]
[1740230866382,1.86616127,96873.0,96872.0,0.0552]
[1740230866586,1.87616127,96873.0,96872.0,0.0552]
[1740230866786,1.86616127,96873.0,96872.0,0.0552]
[1740230866997,1.75670873,96873.0,96872.0,0.0552]
[1740230867395,1.76670873,96873.0,96872.0,0.0552]
[1740230867604,1.75670873,96873.0,96872.0,0.0552]
[1740230867800,1.76670873,96873.0,96872.0,0.0552]
[1740230871010,1.86710873,96873.0,96872.0,0.0552]
[1740230872513,1.86910873,96873.0,96872.0,0.0542]
[1740230873010,1.87010873,96873.0,96872.0,0.0522]
[1740230873210,1.87210873,96873.0,96872.0,0.0522]
[1740230873814,1.87010873,96873.0,96872.0,0.0522]
[1740230874106,1.87510873,96873.0,96872.0,0.0522]
[1740230874710,1.87410873,96873.0,96872.0,0.0522]
[1740230875011,1.989398,96873.0,96872.0,0.0522]
[1740230876415,1.985398,96873.0,96872.0,0.0522]
[1740230876610,1.990398,96873.0,96872.0,0.0522]
[1740230877299,1.783905,96873.0,96870.0,0.09259]
[1740230877505,0.2164973,96871.0,96870.0,0.09259]
[1740230877702,0.2164973,96871.0,96870.0,0.0513]
[1740230877907,1.7164973,96871.0,96870.0,0.0513]
[1740230879210,1.7214973,96871.0,96870.0,0.0513]
[1740230880518,1.7264973,96871.0,96870.0,0.0513]
[1740230882619,1.8900023,96871.0,96870.0,0.0513]
[1740230888821,0.2064994,96870.0,96869.0,2e-08]
[1740230889019,0.2164994,96870.0,96869.0,2e-08]
[1740230889526,0.21770959,96870.0,96869.0,2e-08]
[1740230889826,1.71770959,96870.0,96869.0,2e-08]
[1740230890123,1.72270959,96870.0,96869.0,2e-08]
[1740230891123,2.01886584,96870.0,96869.0,2e-08]
[1740230891624,2.02386584,96870.0,96869.0,2e-08]
[1740230891820,2.38466584,96870.0,96869.0,2e-08]
[1740230895324,0.2065122,96864.0,96863.0,0.0315]
[1740230895625,0.3168722,96864.0,96863.0,0.0315]
[1740230896226,1.8168722,96864.0,96863.0,0.0315]
[1740230896430,1.8188722,96864.0,96863.0,0.0315]
[1740230896919,1.82946702,96864.0,96863.0,0.0315]
[1740230898525,1.83246702,96864.0,96863.0,0.0315]
[1740230899115,1.8218722,96864.0,96863.0,0.0315]
[1740230901427,1.87208793,96864.0,96863.0,0.0315]
[1740230904934,1.9857826,96864.0,96863.0,0.0315]
[1740230908221,2.1184372,96864.0,96863.0,0.0315]
[1740230913034,1.9857826,96864.0,96863.0,0.0315]
[1740230917827,2.3465826,96864.0,96863.0,0.0315]
[1740230920426,2.23288793,96864.0,96863.0,0.0315]
[1740230920829,2.26548793,96864.0,96863.0,0.0315]
[1740230922835,2.05897573,96864.0,96862.0,0.0311]
[1740230923035,0.2165143,96863.0,96862.0,0.0311]
[1740230923241,0.2480143,96863.0,96862.0,0.0311]
[1740230923444,1.7480143,96863.0,96862.0,0.0311]
[1740230924438,1.7530143,96863.0,96862.0,0.0311]
[1740230924837,2.1138143,96863.0,96862.0,0.0311]
[1740230925038,2.1138143,96863.0,96855.0,0.0327]
[1740230925039,1.9073,96863.0,96855.0,0.0327]
[1740230925245,0.2165292,96856.0,96855.0,0.0327]
[1740230926137,0.2165292,96856.0,96855.0,0.0637]
[1740230926447,0.2185292,96856.0,96855.0,0.0637]
[1740230927540,0.2205292,96856.0,96855.0,0.0327]
[1740230927741,0.2065314,96855.0,96854.0,0.00015482]
[1740230927943,0.6776914,96855.0,96854.0,0.00015482]
[1740230930442,0.6786914,96855.0,96854.0,0.00015482]
[1740230930750,0.6806914,96855.0,96854.0,0.00015482]
[1740230931137,2.1806914,96855.0,96854.0,0.00015482]
[1740230931736,2.34750489,96855.0,96854.0,0.00015482]
[1740230944362,2.34550489,96855.0,96854.0,0.00015482]
[1740230944656,2.35250489,96855.0,96854.0,0.00015482]
[1740230945549,2.35150489,96855.0,96854.0,0.00015482]
[1740230945755,2.35850489,96855.0,96854.0,0.00015482]
[1740230947059,2.35150489,96855.0,96854.0,0.00015482]
[1740230947248,2.35850489,96855.0,96854.0,0.00015482]
[1740230957155,2.49350111,96855.0,96854.0,0.00015482]
[1740230957867,3.31186111,96855.0,96854.0,0.00015482]
[1740230962454,3.31186111,96855.0,96853.0,0.0923]
[1740230962455,3.74146459,96855.0,96853.0,0.0615]
[1740230962662,0.2065356,96853.0,96852.0,0.03689551]
[1740230962860,0.2165356,96853.0,96852.0,0.03689551]
[1740230963061,0.2065612,96841.0,96840.0,0.2065626]
[1740230963271,0.2165612,96841.0,96840.0,0.2065626]
[1740230964269,0.2065676,96839.0,96838.0,0.2065638]
[1740230964569,0.2165676,96839.0,96838.0,0.2065638]
[1740230965477,0.2205676,96839.0,96838.0,0.2065638]
[1740230965773,0.2205676,96839.0,96838.0,0.2993638]
[1740230966176,0.2245676,96839.0,96838.0,0.2993638]
[1740230969076,0.27478333,96839.0,96838.0,0.0928]
[1740230971778,0.27478333,96839.0,96838.0,0.2993676]
[1740230971971,0.27478333,96839.0,96838.0,0.0928]
[1740230972671,0.27478333,96839.0,96838.0,0.2993676]
[1740230972870,0.27478333,96839.0,96838.0,0.0928]
[1740230973379,0.27478333,96839.0,96838.0,0.2993676]
[1740230974276,0.27478333,96839.0,96838.0,0.0928]
[1740230980583,0.38534736,96839.0,96838.0,0.0928]
[1740230988584,0.27478333,96839.0,96838.0,0.0928]
[1740230992094,0.06821573,96839.0,96832.0,0.5673802]
[1740230992291,0.2582203,96834.0,96833.0,0.032]
[1740230992597,0.2682203,96834.0,96833.0,0.032]
[1740230993096,0.2682203,96834.0,96833.0,0.2385783]
[1740230993695,0.2702203,96834.0,96833.0,0.032]
[1740230994095,0.2722203,96834.0,96833.0,0.032]
[1740230994488,0.2722203,96834.0,96833.0,0.2385783]
[1740230995491,0.2722203,96834.0,96833.0,0.032]
[1740230996088,1.7722203,96834.0,96833.0,0.032]
[1740230997690,1.82243603,96834.0,96833.0,0.032]
[1740230998998,1.82243603,96834.0,96823.0,0.0516498]
[1740230998999,0.0516446,96833.0,96811.0,0.35918684]
[1740230999195,0.2166018,96822.0,96820.0,0.0304]
[1740230999897,1.7166018,96822.0,96820.0,0.0304]
[1740231000503,1.7166018,96822.0,96821.0,0.18661684]
[1740231000699,1.7166018,96822.0,96821.0,0.18861684]
[1740231001001,1.7166018,96822.0,96821.0,0.39522074]
[1740231001391,1.7166018,96822.0,96821.0,0.18861684]
[1740231002299,0.2166018,96822.0,96821.0,0.18661684]
[1740231002603,0.2166018,96822.0,96821.0,0.18861684]
[1740231003402,0.3098947,96829.0,96828.0,0.2582287]
[1740231003697,0.4684,96838.0,96832.0,0.2065783]
[1740231003698,0.2065855,96833.0,96832.0,0.2065783]
[1740231003892,0.2582308,96833.0,96832.0,0.2065783]
[1740231004288,0.2582308,96833.0,96832.0,0.2712783]
[1740231004602,0.2582308,96833.0,96832.0,0.3024783]
[1740231005393,0.2582308,96833.0,96832.0,0.31279138]
[1740231005894,0.2602308,96833.0,96832.0,0.3024783]
[1740231006608,0.2622308,96833.0,96832.0,0.3024783]
[1740231010901,0.2066018,96822.0,96820.0,0.00104]
[1740231011107,0.3608,96827.0,96816.0,0.0516535]
[1740231011411,0.206606,96820.0,96818.0,0.2066103]
[1740231011705,0.206606,96820.0,96819.0,0.00154927]
[1740231012198,0.204606,96820.0,96819.0,0.20815747]
[1740231012899,0.214606,96820.0,96819.0,0.21115747]
[1740231013096,0.214606,96820.0,96819.0,0.21315747]
[1740231014502,0.36936607,96820.0,96819.0,0.21315747]
[1740231015709,0.35936607,96820.0,96819.0,0.21315747]
[1740231016907,0.36936607,96820.0,96819.0,0.21315747]
[1740231017401,0.15476007,96820.0,96819.0,0.21315747]
[1740231017707,0.36136607,96820.0,96819.0,0.21315747]
[1740231018411,0.15476007,96820.0,96819.0,0.21315747]
[1740231018594,0.051651,96821.0,96820.0,0.2582527]
[1740231018799,0.0516502,96823.0,96822.0,0.2066018]
[1740231018800,0.2582541,96823.0,96822.0,0.2066018]
[1740231019305,0.2582541,96823.0,96822.0,0.2369018]
[1740231019504,0.2066039,96823.0,96822.0,0.2369018]
[1740231019815,0.2066039,96823.0,96822.0,0.2379018]
[1740231021805,0.2066039,96823.0,96822.0,0.2399018]
[1740231023111,0.2066039,96823.0,96822.0,0.2699018]
[1740231040720,0.0303,96825.0,96822.0,0.0633]
[1740231040912,0.236898,96825.0,96824.0,0.2065975]
[1740231043929,0.236898,96825.0,96824.0,0.2075975]
[1740231045925,0.39176353,96825.0,96824.0,0.2075975]
[1740231046729,0.2066103,96818.0,96817.0,0.09842684]
[1740231046928,0.5674103,96818.0,96817.0,0.09842684]
[1740231047131,2.0674103,96818.0,96817.0,0.09842684]
[1740231047328,1.8608,96818.0,96813.0,0.05627717]
[1740231047534,0.2066188,96814.0,96813.0,7e-08]
[1740231047737,0.3123788,96814.0,96813.0,7e-08]
[1740231047937,0.3193788,96814.0,96813.0,7e-08]
[1740231049542,0.3204988,96814.0,96813.0,7e-08]